bitfinex-derivatives/quotes_BTCF0:USTF0_20251229
["timestamp","ask_amount","ask_price","bid_price","bid_amount"]
[1766974129310,0.09544,89162.0,89139.0,0.0112295]
[1766974129619,0.0112272,89158.0,89142.0,0.00016827]
[1766974129819,0.09544,89162.0,89142.0,0.00016827]
[1766974130112,0.0112271,89159.0,89123.0,0.0134756]
[1766974130316,0.0112277,89155.0,89131.0,0.0112306]
[1766974130513,0.09544,89162.0,89131.0,0.0112306]
[1766974130710,0.09544,89162.0,89135.0,0.01123]
[1766974131112,0.1066667,89162.0,89123.0,0.0022441]
[1766974131308,0.09544,89162.0,89127.0,0.011231]
[1766974131512,0.0112282,89150.0,89130.0,0.0112307]
[1766974131718,0.0112286,89147.0,89126.0,0.0112312]
[1766974132019,0.0112286,89148.0,89127.0,0.1500311]
[1766974132219,0.00016827,89146.0,89130.0,0.0112307]
[1766974132609,0.00915549,89149.0,89127.0,0.1388]
[1766974133009,0.23592414,89150.0,89128.0,0.011231]
[1766974133713,0.00016827,89148.0,89130.0,0.00016827]
[1766974134309,0.00016827,89148.0,89131.0,0.0112306]
[1766974135211,0.1066668,89162.0,89130.0,0.00016827]
[1766974135513,0.09544,89162.0,89147.0,0.0112285]
[1766974135817,0.09544,89179.0,89142.0,0.09544]
[1766974136018,0.09544,89183.0,89154.0,0.0112276]
[1766974136217,0.09544,89183.0,89155.0,0.15328]
[1766974136415,0.09544,89183.0,89160.0,0.01139517]
[1766974136416,0.00016827,89177.0,89160.0,0.01139517]
[1766974136721,0.00016827,89177.0,89161.0,0.09544]
[1766974136910,0.00016827,89177.0,89165.0,0.0112263]
[1766974137616,0.00016827,89177.0,89161.0,0.1066667]
[1766974138017,0.00016827,89177.0,89161.0,0.09544]
[1766974138914,0.00016827,89177.0,89162.0,0.0112267]
[1766974139418,0.01139307,89177.0,89160.0,0.00016827]
[1766974139612,0.00016827,89177.0,89161.0,0.15324]
[1766974139810,0.00016827,89177.0,89165.0,0.0112263]
[1766974140019,0.0112241,89183.0,89161.0,0.1644668]
[1766974140216,0.09544,89190.0,89161.0,0.15324]
[1766974140420,0.0112228,89193.0,89172.0,0.0112254]
[1766974140615,0.0578,89205.0,89162.0,0.01755064]
[1766974140616,0.09544,89199.0,89173.0,0.15324]
[1766974140922,0.3208,89228.0,89188.0,0.0112233]
[1766974141119,0.09544,89242.0,89198.0,0.0112221]
[1766974141315,0.09544,89242.0,89199.0,0.15324]
[1766974141316,0.0112196,89219.0,89199.0,0.15324]
[1766974141515,0.011219,89223.0,89200.0,0.09544]
[1766974141715,0.0112195,89219.0,89200.0,0.09544]
[1766974142013,0.00016818,89218.0,89201.0,0.00016818]
[1766974142214,0.0112161,89247.0,89201.0,0.14226449]
[1766974142414,0.0112167,89242.0,89202.0,0.01754098]
[1766974142621,0.011216,89248.0,89219.0,0.0112195]
[1766974142823,0.09544,89252.0,89220.0,0.15324]
[1766974142824,0.0112164,89244.0,89220.0,0.15324]
[1766974143019,0.0010011,89232.0,89220.0,0.15324]
[1766974143325,0.09544,89252.0,89220.0,0.15324]
[1766974143326,0.09544,89252.0,89221.0,0.0112192]
[1766974143517,0.0112163,89245.0,89220.0,0.15324]
[1766974143916,0.0112163,89245.0,89220.0,0.1644594]
[1766974144112,0.0112168,89241.0,89220.0,0.15324]
[1766974144317,0.0010011,89231.0,89222.0,0.00016808]
[1766974144519,0.0001113,89239.0,89223.0,0.1532]
[1766974145228,0.0112172,89238.0,89224.0,0.15316]
[1766974145415,0.0010022,89231.0,89224.0,0.15316]
[1766974145612,0.0010022,89231.0,89225.0,0.05776]
[1766974145819,0.0013359,89228.0,89222.0,0.00016808]
[1766974146314,0.00184122,89225.0,89223.0,0.1158]
[1766974146519,0.0001113,89239.0,89222.0,8e-08]
[1766974146729,0.0001113,89239.0,89223.0,0.0954]
[1766974146930,0.0001113,89239.0,89222.0,8e-08]
[1766974147127,0.0112193,89221.0,89216.0,8e-08]
[1766974147317,0.00101064,89231.0,89174.0,0.0112252]
[1766974147318,0.0112218,89202.0,89174.0,0.0112252]
[1766974147629,0.0112188,89226.0,89191.0,0.00165556]
[1766974147825,0.0112217,89202.0,89192.0,0.05772]
[1766974148023,0.05772,89230.0,89193.0,0.15312]
[1766974148024,0.0112205,89212.0,89193.0,0.15312]
[1766974148223,0.0954,89220.0,89195.0,0.0112225]
[1766974148224,0.00016818,89211.0,89195.0,0.0112225]
[1766974148420,0.0112192,89222.0,89198.0,0.00165556]
[1766974148725,0.0954,89240.0,89198.0,0.01]
[1766974149030,0.1066171,89239.0,89199.0,0.11209505]
[1766974149226,0.0112165,89244.0,89202.0,0.00165556]
[1766974149419,0.0112169,89241.0,89216.0,0.00165556]
[1766974149620,0.0112169,89241.0,89218.0,0.0112196]
[1766974149834,0.0112169,89241.0,89217.0,0.15146227]
[1766974150031,0.0954,89245.0,89218.0,0.0112196]
[1766974150327,0.00101064,89232.0,89218.0,0.0112196]
[1766974150521,0.00101064,89232.0,89217.0,0.15146227]
[1766974150727,0.00101064,89232.0,89218.0,0.05768]
[1766974150923,0.00151596,89225.0,89210.0,0.00016818]
[1766974151125,0.00151596,89225.0,89211.0,0.10816]
[1766974151318,0.0112185,89228.0,89211.0,0.10816]
[1766974151319,0.00202128,89218.0,89211.0,0.10816]
[1766974151723,0.0112189,89225.0,89210.0,0.00016818]
[1766974151920,0.0954,89245.0,89211.0,0.10816]
[1766974152125,0.0112165,89243.0,89217.0,0.0112198]
[1766974152327,0.0954,89245.0,89217.0,0.0112198]
[1766974152328,0.0112169,89240.0,89217.0,0.0112198]
[1766974152522,0.0112164,89244.0,89220.0,0.0112193]
[1766974152728,0.0112164,89244.0,89221.0,0.0954]
[1766974153028,0.0954,89252.0,89226.0,0.0112186]
[1766974153224,0.0112165,89244.0,89230.0,0.00016808]
[1766974153421,0.1066154,89252.0,89230.0,0.00016808]
[1766974153625,0.0112158,89249.0,89230.0,0.00016808]
[1766974153825,0.0112163,89245.0,89230.0,0.00016808]
[1766974154127,0.0112168,89241.0,89230.0,0.00016808]
[1766974154326,0.00105456,89236.0,89230.0,0.00016808]
[1766974154527,0.0112156,89251.0,89230.0,0.01138618]
[1766974154831,0.011215,89255.0,89233.0,0.0112177]
[1766974155033,0.0112145,89259.0,89230.0,0.00016808]
[1766974155423,0.0954,89260.0,89230.0,0.00016808]
[1766974155424,0.00105456,89245.0,89230.0,0.00016808]
[1766974155730,0.00140608,89238.0,89230.0,8e-08]
[1766974156130,0.0112158,89249.0,89230.0,8e-08]
[1766974156432,0.0954,89260.0,89230.0,8e-08]
[1766974156826,0.00016768,89254.0,89230.0,8e-08]
[1766974157023,8e-08,89254.0,89239.0,0.011217]
[1766974157337,8e-08,89254.0,89240.0,0.15296]
[1766974157536,8e-08,89254.0,89250.0,0.0112156]
[1766974157737,0.01287539,89272.0,89250.0,0.0112156]
[1766974157924,0.3208,89301.0,89252.0,0.0112153]
[1766974158129,0.00105456,89273.0,89252.0,0.09536]
[1766974158533,0.00154082,89263.0,89252.0,0.09536]
[1766974158724,0.0112142,89262.0,89251.0,0.15296]
[1766974158928,0.00154082,89263.0,89249.0,0.09536]
[1766974159129,0.09536,89277.0,89249.0,0.09536]
[1766974160042,0.0112144,89260.0,89254.0,8e-08]
[1766974160229,0.0112148,89257.0,89251.0,0.05756]
[1766974160424,0.0112146,89259.0,89232.0,0.0112178]
[1766974160733,0.0112141,89263.0,89238.0,0.0112171]
[1766974160927,0.05756,89275.0,89238.0,0.03]
[1766974160928,0.011215,89256.0,89238.0,0.03]
[1766974161128,0.0112161,89247.0,89205.0,0.23844]
[1766974161331,0.00016808,89235.0,89217.0,0.00016808]
[1766974161632,0.00016808,89235.0,89219.0,0.0112195]
[1766974161836,0.00016808,89235.0,89222.0,0.0112191]
[1766974162031,0.00016808,89235.0,89222.0,0.0412191]
[1766974162229,0.0112162,89246.0,89225.0,0.0112187]
[1766974162433,0.0112162,89246.0,89225.0,0.0312187]
[1766974162731,0.09536,89254.0,89226.0,0.13408]
[1766974162927,0.09536,89254.0,89217.0,0.00016808]
[1766974162928,0.0112153,89253.0,89217.0,0.00016808]
[1766974163128,0.09536,89254.0,89217.0,0.03016808]
[1766974163129,0.0112172,89238.0,89217.0,0.03016808]
[1766974163434,0.0112172,89238.0,89166.0,0.03906179]
[1766974163435,0.09536,89243.0,89186.0,0.01288068]
[1766974163636,0.09536,89243.0,89199.0,0.011222]
[1766974163938,0.0112183,89229.0,89203.0,0.0112215]
[1766974164139,0.0112183,89229.0,89203.0,0.0412215]
[1766974164436,0.00016808,89225.0,89207.0,0.00016808]
[1766974164836,0.0112217,89203.0,89169.0,0.01288112]
[1766974165038,0.0112182,89230.0,89181.0,0.09536]
[1766974165039,0.0112219,89200.0,89181.0,0.09536]
[1766974165239,0.01888,89224.0,89181.0,0.12536]
[1766974165240,0.011221,89208.0,89181.0,0.12536]
[1766974165430,0.00121532,89191.0,89181.0,0.08752]
[1766974165631,0.0112213,89205.0,89181.0,0.08752]
[1766974165943,0.0112213,89205.0,89184.0,0.00016818]
[1766974165944,0.00016818,89202.0,89184.0,0.00016818]
[1766974166438,0.01138988,89202.0,89184.0,0.00016818]
[1766974166644,0.0112225,89196.0,89184.0,0.00016818]
[1766974166951,0.09536,89201.0,89151.0,0.0112281]
[1766974167141,0.09536,89201.0,89167.0,0.011226]
[1766974167345,0.0112234,89189.0,89162.0,0.0112267]
[1766974167539,0.0112234,89189.0,89164.0,0.0112265]
[1766974167743,0.0112249,89177.0,89148.0,0.0112284]
[1766974167945,0.011227,89161.0,89135.0,0.0112301]
[1766974168136,0.00016818,89171.0,89135.0,0.0112301]
[1766974168137,0.0112272,89159.0,89136.0,0.17043158]
[1766974168444,0.00010495,89160.0,89137.0,0.09536]
[1766974168646,0.01133195,89160.0,89137.0,0.12536]
[1766974169034,0.011228,89152.0,89140.0,0.00016818]
[1766974169239,0.011228,89152.0,89125.0,0.09536]
[1766974169449,0.0112285,89148.0,89125.0,0.12536]
[1766974169840,0.09536,89157.0,89121.0,0.00022419]
[1766974169841,0.011229,89144.0,89121.0,0.00022419]
[1766974170034,0.09536,89157.0,89123.0,0.0322441]
[1766974170035,0.0112284,89149.0,89123.0,0.0322441]
[1766974170239,0.00016828,89145.0,89127.0,0.00011241]
[1766974170441,0.0112294,89141.0,89127.0,0.00011241]
[1766974170746,0.0112296,89139.0,89123.0,0.0022441]
[1766974171242,0.0112307,89131.0,89098.0,0.0112347]
[1766974171438,0.0112307,89131.0,89099.0,0.0954]
[1766974171640,0.00016828,89124.0,89100.0,0.05752]
[1766974171842,0.0954,89135.0,89109.0,0.0112333]
[1766974172137,0.0954,89135.0,89110.0,0.0954]
[1766974172339,8.95e-05,89140.0,89111.0,0.0112331]
[1766974172642,8.95e-05,89140.0,89112.0,0.05752]
[1766974172846,0.00016828,89135.0,89117.0,0.00016828]
[1766974175044,0.0954,89134.0,89109.0,0.0954]
[1766974175250,0.0954,89134.0,89109.0,0.03]
[1766974175954,0.00016828,89135.0,89109.0,0.03]
[1766974176248,0.0112278,89154.0,89126.0,0.0112312]
[1766974176443,0.011228,89152.0,89126.0,0.1066712]
[1766974176644,0.106668,89152.0,89126.0,0.1066712]
[1766974176839,0.09544,89152.0,89127.0,0.011231]
[1766974177043,0.00016828,89148.0,89131.0,0.00016828]
[1766974177237,0.00016828,89148.0,89131.0,0.01139888]
[1766974177752,0.00016828,89148.0,89131.0,0.00016828]
[1766974179148,0.00016828,89148.0,89136.0,0.0112299]
[1766974179352,9.163e-05,89151.0,89138.0,0.0112296]
[1766974179544,0.09544,89159.0,89140.0,0.0112295]
[1766974179740,0.09544,89166.0,89140.0,0.0112295]
[1766974179941,0.1066662,89166.0,89140.0,0.0112295]
[1766974180340,0.00016828,89162.0,89140.0,0.02]
[1766974180856,0.1066642,89183.0,89159.0,0.011227]
[1766974181247,0.09544,89183.0,89165.0,0.0112262]
[1766974181448,0.09544,89183.0,89157.0,0.09544]
[1766974181748,0.00016828,89179.0,89161.0,0.00016828]
[1766974183447,0.01139288,89179.0,89161.0,0.00016828]
[1766974184852,0.0112255,89172.0,89147.0,0.0112285]
[1766974185054,0.0112255,89172.0,89149.0,0.0112283]
[1766974185250,0.0112255,89172.0,89150.0,0.15292]
[1766974185556,0.0112255,89172.0,89150.0,0.18292]
[1766974186054,0.0112255,89172.0,89152.0,0.00016828]
[1766974186352,0.00016828,89179.0,89152.0,0.03016828]
[1766974186553,0.00016828,89179.0,89152.0,0.00016828]
[1766974186760,0.0112258,89170.0,89152.0,0.00016828]
[1766974187056,0.0112261,89167.0,89152.0,0.00016828]
[1766974187257,0.09544,89173.0,89138.0,0.0112297]
[1766974187454,0.09544,89173.0,89139.0,0.11404]
[1766974188049,0.0112256,89171.0,89146.0,0.0112287]
[1766974188246,0.09544,89173.0,89151.0,0.011228]
[1766974188451,0.09544,89193.0,89153.0,0.0112278]
[1766974188657,0.09544,89193.0,89153.0,0.03]
[1766974188953,0.09544,89193.0,89157.0,0.0112273]
[1766974189154,0.09544,89193.0,89158.0,0.1641471]
[1766974189359,0.00016828,89184.0,89172.0,0.0112254]
[1766974189549,0.00016828,89184.0,89169.0,0.00016828]
[1766974189949,0.00016828,89184.0,89110.0,0.02921317]
[1766974190153,0.3293331,89180.0,89125.0,0.0112313]
[1766974190358,0.09544,89179.0,89126.0,0.09544]
[1766974190655,0.0112286,89147.0,89127.0,0.106671]
[1766974190857,0.09544,89155.0,89093.0,0.00224486]
[1766974191156,0.0112298,89138.0,89101.0,0.11216735]
[1766974191358,0.09544,89140.0,89117.0,0.0112324]
[1766974191563,0.0112296,89139.0,89113.0,0.1066728]
[1766974191855,0.09544,89140.0,89105.0,0.05748]
[1766974192059,0.00016828,89131.0,89105.0,0.15292]
[1766974192452,0.15292,89130.0,89090.0,0.09544]
[1766974192653,0.0112326,89116.0,89090.0,0.09544]
[1766974192854,0.15292,89130.0,89088.0,0.011236]
[1766974192855,0.0112328,89114.0,89088.0,0.011236]
[1766974193054,0.0112328,89114.0,89076.0,0.0002243]
[1766974193055,8e-08,89112.0,89102.0,0.0112342]
[1766974193249,8e-08,89112.0,89093.0,0.11768486]
[1766974193250,8e-08,89112.0,89093.0,0.00224486]
[1766974193448,8e-08,89112.0,89093.0,0.01348026]
[1766974194058,8e-08,89112.0,89094.0,0.0001682]
[1766974194459,0.0112337,89107.0,89071.0,0.0112381]
[1766974194655,0.05748,89108.0,89081.0,0.0112369]
[1766974194856,0.0112337,89107.0,89081.0,0.0112369]
[1766974195056,0.0112337,89107.0,89076.0,0.0114617]
[1766974195765,0.0687136,89108.0,89077.0,0.09544]
[1766974196063,0.0112341,89104.0,89077.0,0.09544]
[1766974196257,0.09544,89103.0,89078.0,0.01756756]
[1766974196459,0.09544,89103.0,89079.0,0.02880466]
[1766974196663,0.09544,89103.0,89080.0,0.01756756]
[1766974196858,8e-08,89112.0,89081.0,0.01756756]
[1766974197063,0.1313931,89111.0,89087.0,0.0112361]
[1766974197265,0.0112336,89107.0,89082.0,0.0112367]
[1766974197464,0.1313932,89111.0,89076.0,0.0002243]
[1766974197665,0.1313932,89111.0,89077.0,0.01756729]
[1766974197666,0.12016,89111.0,89077.0,0.01756729]
[1766974197860,0.12016,89111.0,89078.0,0.01756729]
[1766974198061,0.12016,89111.0,89085.0,0.0112363]
[1766974198264,0.12016,89111.0,89089.0,0.0112358]
[1766974198463,0.05752,89111.0,89092.0,0.0112354]
[1766974198663,8e-08,89112.0,89084.0,0.09548]
[1766974198866,0.09548008,89112.0,89085.0,0.1130462]
[1766974199065,0.09548008,89112.0,89094.0,0.0112352]
[1766974199664,0.09548008,89112.0,89089.0,0.0112358]
[1766974200259,0.2248871,89100.0,89077.0,0.0112374]
[1766974200457,0.2248871,89100.0,89080.0,0.011237]
[1766974200656,0.09548,89101.0,89080.0,0.011237]
[1766974200868,0.2248871,89100.0,89077.0,0.0112374]
[1766974201166,0.09548,89139.0,89081.0,0.11224541]
[1766974201360,0.0112298,89138.0,89112.0,0.0112329]
[1766974201561,0.0112298,89138.0,89081.0,0.03]
[1766974201562,0.0112325,89117.0,89072.0,0.09548]
[1766974201762,0.2248871,89110.0,89077.0,0.01756682]
[1766974201963,0.09548,89109.0,89078.0,0.01756682]
[1766974202261,0.00016837,89102.0,89093.0,0.0112354]
[1766974202660,0.09548,89128.0,89108.0,0.0112335]
[1766974202862,0.153,89129.0,89107.0,0.0112335]
[1766974203172,0.09548,89128.0,89094.0,0.09548]
[1766974203371,1.51289602,89151.0,89094.0,0.09548]
[1766974203372,0.0112281,89151.0,89110.0,0.2248871]
[1766974203671,0.00016837,89139.0,89130.0,0.0112307]
[1766974203873,0.00016827,89143.0,89130.0,0.0112307]
[1766974204060,0.0112256,89171.0,89127.0,0.011231]
[1766974204262,0.0112248,89177.0,89147.0,0.0112286]
[1766974204482,0.14952,89176.0,89141.0,0.09548]
[1766974204664,0.09548,89175.0,89159.0,0.0112271]
[1766974204871,0.09548,89184.0,89154.0,0.09548]
[1766974205058,0.00016827,89178.0,89160.0,0.00016827]
[1766974205758,0.0112249,89177.0,89160.0,0.00016827]
[1766974205963,0.01139307,89178.0,89160.0,0.00016827]
[1766974206165,0.00016827,89178.0,89160.0,0.00016827]
[1766974207066,0.00016827,89178.0,89165.0,0.0112262]
[1766974207260,0.05752,89181.0,89160.0,0.01139517]
[1766974207468,0.09548,89185.0,89164.0,0.0112264]
[1766974207676,0.09548,89185.0,89160.0,0.01139527]
[1766974208166,0.00016827,89181.0,89160.0,0.01139527]
[1766974208873,0.2248871,89230.0,89161.0,0.11214219]
[1766974209067,0.09570419,89210.0,89162.0,0.0750694]
[1766974209368,0.09570419,89210.0,89163.0,0.17054861]
[1766974209369,0.0112209,89209.0,89163.0,0.17054861]
[1766974209570,0.05752,89208.0,89188.0,0.0112234]
[1766974209760,0.153,89208.0,89180.0,0.0112243]
[1766974209958,0.153,89208.0,89173.0,0.05748]
[1766974209959,0.0112213,89206.0,89189.0,0.00016816]
[1766974210162,0.00016816,89207.0,89174.0,0.05748]
[1766974210471,0.0112216,89203.0,89175.0,0.15292]
[1766974210770,0.00016816,89207.0,89141.0,0.09544]
[1766974210771,0.0112235,89188.0,89141.0,0.09544]
[1766974210970,0.0112236,89187.0,89142.0,0.01755387]
[1766974211163,0.00016816,89173.0,89157.0,0.0112273]
[1766974211362,0.00016816,89173.0,89158.0,0.09544]
[1766974211563,0.0112218,89202.0,89174.0,0.0112252]
[1766974211763,0.0576,89196.0,89174.0,0.0112252]
[1766974212065,0.09544,89201.0,89174.0,0.03]
[1766974212266,0.0112213,89205.0,89176.0,0.0112249]
[1766974212464,0.00016816,89199.0,89182.0,0.00016816]
[1766974212659,6e-08,89199.0,89194.0,0.0112226]
[1766974212870,0.00022419,89210.0,89197.0,0.0112222]
[1766974212871,4.19e-06,89210.0,89197.0,0.0112222]
[1766974213061,0.2248871,89250.0,89196.0,0.09544]
[1766974213265,0.0112165,89244.0,89209.0,0.0112208]
[1766974213464,0.0576,89249.0,89198.0,0.0112222]
[1766974213465,0.0112181,89231.0,89198.0,0.0112222]
[1766974213664,0.0112184,89228.0,89210.0,0.00958]
[1766974213869,0.00153112,89219.0,89210.0,0.00974816]
[1766974214176,0.00225198,89215.0,89201.0,0.09544]
[1766974214770,0.0112189,89225.0,89201.0,0.09544]
[1766974214971,0.00016816,89222.0,89204.0,0.00016816]
[1766974215171,0.01288103,89250.0,89204.0,0.00016816]
[1766974215172,0.09544,89237.0,89204.0,0.03016816]
[1766974215472,0.00224033,89273.0,89210.0,0.2248871]
[1766974215673,0.00224033,89273.0,89211.0,0.05756]
[1766974215674,0.2248871,89250.0,89211.0,0.05756]
[1766974215863,0.09732,89249.0,89212.0,0.09544]
[1766974216177,0.00016816,89239.0,89222.0,0.00016816]
[1766974217268,0.00016816,89239.0,89200.0,0.2248871]
[1766974217269,0.0112172,89238.0,89205.0,0.0112212]
[1766974217468,0.0112172,89238.0,89206.0,0.153]
[1766974217673,0.0112172,89238.0,89207.0,0.1120693]
[1766974217871,0.00016816,89239.0,89213.0,0.0112203]
[1766974218178,0.00016816,89239.0,89207.0,0.03]
[1766974218179,0.00016816,89239.0,89207.0,0.11207935]
[1766974218472,0.00016816,89239.0,89215.0,0.01122]
[1766974219074,0.00016816,89239.0,89214.0,0.00016816]
[1766974220068,0.00016816,89239.0,89214.0,0.01138826]
[1766974220777,0.0112141,89263.0,89215.0,0.12329422]
[1766974220968,0.0954,89270.0,89222.0,0.0112191]
[1766974221278,0.0954,89270.0,89243.0,0.0112164]
[1766974221468,0.0954,89270.0,89243.0,0.1066164]
[1766974221669,0.0112146,89259.0,89243.0,0.0954]
[1766974221870,0.00016805,89260.0,89242.0,0.00016805]
[1766974222270,0.0112107,89289.0,89242.0,0.00016805]
[1766974222271,0.0112127,89274.0,89242.0,0.00016805]
[1766974222467,0.0112116,89283.0,89251.0,0.0112155]
[1766974222874,0.09764033,89273.0,89251.0,0.0112155]
[1766974223068,0.09764033,89273.0,89249.0,0.0954]
[1766974223270,0.00011163,89270.0,89249.0,0.0954]
[1766974223572,0.00011163,89270.0,89250.0,0.0112156]
[1766974224773,0.00011163,89270.0,89249.0,0.0954]
[1766974224974,1.96e-06,89273.0,89251.0,0.0112155]
[1766974225178,1.96e-06,89273.0,89249.0,0.0954]
[1766974225574,1.96e-06,89273.0,89249.0,0.1066156]
[1766974226575,0.01121476,89273.0,89249.0,0.0954]
[1766974226987,0.01121476,89273.0,89250.0,0.0112155]
[1766974227283,1.96e-06,89273.0,89250.0,0.0112155]
[1766974227668,0.011213,89272.0,89249.0,0.0954]
[1766974227983,1.96e-06,89273.0,89249.0,0.1066157]
[1766974228371,1.96e-06,89273.0,89249.0,0.0954]
[1766974228372,0.0112132,89270.0,89249.0,0.0954]
[1766974228570,1.96e-06,89273.0,89250.0,0.0112155]
[1766974228773,0.01121486,89273.0,89250.0,0.0112155]
[1766974229079,0.0112132,89270.0,89249.0,0.0954]
[1766974229380,0.0112079,89312.0,89253.0,0.0112152]
[1766974229679,0.0686483,89309.0,89276.0,0.0112123]
[1766974229874,0.7248871,89300.0,89279.0,0.0112119]
[1766974230075,0.15296,89299.0,89282.0,0.0112116]
[1766974230275,0.15296,89299.0,89284.0,0.0112113]
[1766974230976,0.5,89300.0,89274.0,0.01287327]
[1766974231275,0.15292,89299.0,89280.0,0.0112118]
[1766974231682,0.15292,89299.0,89281.0,0.01287327]
[1766974231878,0.05756,89299.0,89276.0,0.0112123]
[1766974232074,0.15292,89298.0,89283.0,0.0112114]
[1766974232282,0.15292,89298.0,89274.0,0.01287327]
[1766974232469,0.15292,89298.0,89275.0,0.0112125]
[1766974232669,0.2248871,89290.0,89268.0,0.00016805]
[1766974232874,0.15292,89298.0,89268.0,0.00016805]
[1766974233075,0.15292,89298.0,89275.0,0.0112125]
[1766974233275,0.1641297,89298.0,89274.0,0.0112126]
[1766974233481,0.00146886,89286.0,89274.0,0.0112126]
[1766974233682,0.05756,89285.0,89276.0,0.0112124]
[1766974234078,0.04468673,89285.0,89276.0,0.0112124]
[1766974234272,0.7248871,89300.0,89268.0,0.00016805]
[1766974234581,0.1640495,89299.0,89276.0,0.0112123]
[1766974234887,0.1640495,89299.0,89255.0,0.011215]
[1766974234888,0.2248871,89290.0,89256.0,0.09532]
[1766974235086,0.05752,89289.0,89272.0,0.0112128]
[1766974235285,0.09532,89288.0,89272.0,0.0112128]
[1766974236378,0.09532,89288.0,89275.0,0.0112125]
[1766974236685,0.09532,89288.0,89263.0,0.0112139]
[1766974236686,0.0112113,89285.0,89263.0,0.0112139]
[1766974236885,0.2248871,89280.0,89263.0,0.0112139]
[1766974237087,0.05752,89279.0,89263.0,0.0112139]
[1766974237286,0.09532,89278.0,89249.0,0.09532]
[1766974237486,0.09532,89278.0,89261.0,0.0112141]
[1766974237781,0.09532,89278.0,89249.0,0.09532]
[1766974237980,0.00016805,89289.0,89269.0,0.0112132]
[1766974238181,0.00016805,89289.0,89256.0,0.0112148]
[1766974238182,0.09532,89288.0,89256.0,0.0112148]
[1766974238380,0.05748,89287.0,89276.0,0.0112124]
[1766974238785,0.05748,89287.0,89259.0,0.09532]
[1766974238989,5e-08,89289.0,89274.0,0.0112126]
[1766974239288,0.1528,89288.0,89278.0,0.0112121]
[1766974239582,0.05748,89287.0,89277.0,2.2e-06]
[1766974239792,0.00120236,89283.0,89259.0,0.09532]
[1766974239990,0.2248871,89280.0,89269.0,0.0112131]
[1766974240179,0.2248871,89280.0,89274.0,0.0112126]
[1766974240375,0.2248871,89320.0,89259.0,0.0112144]
[1766974240376,0.05748,89279.0,89259.0,0.0112144]
[1766974240678,0.05748,89279.0,89256.0,0.0112149]
[1766974240679,0.05748,89279.0,89273.0,0.0112127]
[1766974240876,0.05748,89280.0,89273.0,0.0112127]
[1766974241391,0.05748,89280.0,89267.0,0.00016805]
[1766974241686,0.2823671,89280.0,89261.0,0.0112142]
[1766974241878,0.2823671,89280.0,89248.0,0.09532]
[1766974242484,0.00016805,89285.0,89275.0,0.0112125]
[1766974242790,0.00016805,89285.0,89270.0,0.011213]
[1766974243090,0.2248871,89280.0,89255.0,0.00016805]
[1766974243394,0.2248871,89280.0,89260.0,0.0112143]
[1766974243691,0.2248871,89280.0,89228.0,0.0112183]
[1766974243692,0.2248871,89270.0,89216.0,0.02921317]
[1766974243997,0.15276,89269.0,89229.0,0.11200716]
[1766974244295,0.3208,89299.0,89255.0,0.011215]
[1766974244296,0.15276,89268.0,89255.0,0.011215]
[1766974244494,0.0112121,89278.0,89255.0,0.011215]
[1766974244495,0.15276,89267.0,89255.0,0.011215]
[1766974244987,0.00016805,89270.0,89261.0,0.0112142]
[1766974245192,0.00016805,89270.0,89252.0,0.00016805]
[1766974245193,0.05744,89269.0,89257.0,0.0112147]
[1766974245392,0.05744,89269.0,89252.0,0.00016805]
[1766974245593,0.05744,89268.0,89263.0,0.0112139]
[1766974245890,0.00132672,89266.0,89259.0,0.0112144]
[1766974246086,0.09548805,89270.0,89252.0,0.00016805]
[1766974246087,0.05760805,89270.0,89262.0,0.011214]
[1766974246286,0.0112109,89288.0,89252.0,0.00016805]
[1766974246487,0.15276,89287.0,89268.0,0.0112134]
[1766974246691,0.15276,89286.0,89249.0,0.09532]
[1766974246994,0.2248871,89280.0,89250.0,0.017534]
[1766974247200,0.2248871,89280.0,89256.0,0.0112148]
[1766974247387,0.2248871,89270.0,89238.0,0.0112171]
[1766974247588,0.05744,89269.0,89239.0,0.011217]
[1766974247788,0.05744,89269.0,89243.0,0.0112165]
[1766974248098,0.05744,89269.0,89258.0,0.0112145]
[1766974248297,5e-08,89277.0,89272.0,0.0112128]
[1766974248488,0.05744,89276.0,89251.0,0.09532]
[1766974248689,0.05744,89276.0,89251.0,0.0112155]
[1766974248890,0.05744,89275.0,89253.0,0.0112152]
[1766974249091,0.05744,89274.0,89253.0,0.0112152]
[1766974249292,0.05744,89274.0,89255.0,0.00016805]
[1766974249511,0.0112098,89297.0,89255.0,0.00016805]
[1766974249512,0.09532,89288.0,89255.0,0.00016805]
[1766974249690,0.05744,89289.0,89255.0,0.00016805]
[1766974249997,0.05744,89289.0,89264.0,0.0112138]
[1766974250200,0.05744,89288.0,89267.0,0.0112135]
[1766974250496,5e-08,89288.0,89268.0,0.0112134]
[1766974250686,5e-08,89288.0,89283.0,0.0112114]
[1766974250891,0.09532,89292.0,89268.0,0.0112134]
[1766974250892,5e-08,89292.0,89268.0,0.0112134]
[1766974251197,5e-08,89292.0,89284.0,0.0112113]
[1766974251396,0.05744,89292.0,89265.0,0.09532]
[1766974251598,5e-08,89287.0,89270.0,0.01138115]
[1766974252195,5e-08,89292.0,89286.0,0.01000062]
[1766974253095,5e-08,89292.0,89270.0,0.00016805]
[1766974253285,5e-08,89292.0,89277.0,0.0112122]
[1766974253286,0.22505515,89290.0,89277.0,0.0112122]
[1766974253491,0.22505515,89290.0,89270.0,0.00016805]
[1766974253902,5e-08,89292.0,89270.0,0.00016805]
[1766974254400,5e-08,89292.0,89284.0,0.0112112]
[1766974254588,0.05744,89293.0,89284.0,0.0112112]
[1766974255091,0.05744,89293.0,89270.0,0.00016805]
[1766974256202,0.2248871,89290.0,89270.0,0.00016805]
[1766974256699,0.00016805,89297.0,89270.0,0.00016805]
[1766974256898,0.00016805,89297.0,89276.0,0.0112123]
[1766974257093,0.00016805,89297.0,89270.0,0.00016805]
[1766974257398,0.00016805,89297.0,89275.0,0.0112125]
[1766974257988,0.00016805,89297.0,89270.0,0.00016805]
[1766974258298,0.00016805,89297.0,89282.0,0.0112115]
[1766974258502,0.00119396,89290.0,89282.0,0.0112115]
[1766974258893,0.00016805,89297.0,89278.0,0.09532]
[1766974259099,0.00016805,89297.0,89282.0,0.0112116]
[1766974259596,0.00016805,89297.0,89279.0,0.011212]
[1766974259987,0.00016805,89297.0,89278.0,0.09532]
[1766974260798,0.00016805,89297.0,89281.0,0.0112117]
[1766974260994,5e-08,89297.0,89278.0,0.09532]
[1766974261198,0.45114648,89300.0,89288.0,0.0112107]
[1766974261406,0.00223958,89303.0,89278.0,0.09532]
[1766974261407,0.00223958,89303.0,89293.0,0.0112101]